[Event "Moscow Rapid-ch 2018"]
[Site "Moscow"]
[Date "2018.12.08"]
[Round "3"]
[White "Paramzina, Anastasya"]
[Black "Strutinskaia, Galina"]
[Result "0-1"]
[ECO "B30"]
[WhiteElo "2229"]
[BlackElo "2201"]
[Annotator "NA"]
[PlyCount "64"]
[EventDate "2018.12.08"]
[EventType "swiss"]
[EventCountry "RUS"]
[SourceTitle "playchess.com"]
[Source "ChessBase"]
[SourceQuality "1"]
[TimeControl "900+10"]

1. e4 {[%emt 0:00:00]} c5 {[%emt 0:00:00]} 2. Nf3 {[%emt 0:00:00]} Nc6 {[%emt 0:00:00]} 3. Bb5 {[%emt 0:00:18]} d6 {[%emt 0:00:08]} 4. O-O {[%emt 0:00:06]} Bd7 {[%emt 0:00:09]} 5. Re1 {[%emt 0:00:17]} a6 {[%emt 0:00:03]} 6. Bf1 {[%emt 0:00:02]} Bg4 {[%emt 0:00:29]} 7. h3 {[%emt 0:00:14]} Bxf3 {[%emt 0:00:02]} 8. Qxf3 {[%emt 0:00:05]} g6 {[%emt 0:00:01]} 9. c3 {[%emt 0:01:29]} Bg7 {[%emt 0:00:16]} 10. Qg3 {[%emt 0:00:51]} e6 {[%emt 0:00:16]} 11. f4 {[%emt 0:00:11]} Nge7 {[%emt 0:00:04]} 12. d3 {[%emt 0:00:54]} O-O {[%emt 0:00:34]} 13. Nd2 {[%emt 0:00:02]} b5 {[%emt 0:00:05]} 14. Nf3 {[%emt 0:00:14]} d5 {[%emt 0:00:22]} 15. Be3 {[%emt 0:01:29]} d4 {[%emt 0:00:02]} 16. Bd2 {[%emt 0:00:20]} Qb6 {[%emt 0:00:34]} 17. Kh1 {[%emt 0:00:11]} a5 {[%emt 0:00:11]} 18. e5 {[%emt 0:00:35]} a4 {[%emt 0:00:16]} 19. Ng5 {[%emt 0:00:34]} a3 {[%emt 0:01:04]} 20. b3 {[%emt 0:00:25]} dxc3 {[%emt 0:00:13]} 21. Bxc3 {[%emt 0:00:01]} Nd5 {[%emt 0:00:40]} 22. Bd2 {[%emt 0:00:12]} Nd4 {[%emt 0:00:01]} 23. Rac1 {[%emt 0:00:04]} Rac8 {[%emt 0:02:42]} 24. Qh4 {[%emt 0:00:54]} h6 {[%emt 0:00:02]} 25. Ne4 {[%emt 0:00:03]} Rc7 {[%emt 0:00:30]} 26. Qf2 {[%emt 0:00:55]} Rd8 {[%emt 0:00:39]} 27. Nxc5 {[%emt 0:03:36]} Nxf4 {[%emt 0:02:49]} 28. Qxf4 {[%emt 0:00:07]} Rxc5 {[%emt 0:00:02]} 29. Ba5 {[%emt 0:00:08]} Qxa5 {[%emt 0:00:06]} 30. Rxc5 {[%emt 0:01:58]} Qxe1 {[%emt 0:00:04]} 31. Rc7 {[%emt 0:00:02]} Nf5 {[%emt 0:00:25]} 32. g4 {[%emt 0:01:22]} Bxe5 {[%emt 0:00:39]} 0-1

[Event "Moscow Rapid-ch 2018"]
[Site "Moscow"]
[Date "2018.12.08"]
[Round "3"]
[White "Vlasov, Sergey"]
[Black "Yeletsky, Ivan"]
[Result "0-1"]
[ECO "B90"]
[WhiteElo "2229"]
[BlackElo "2406"]
[Annotator "NA"]
[PlyCount "46"]
[EventDate "2018.12.08"]
[EventType "swiss"]
[EventCountry "RUS"]
[SourceTitle "playchess.com"]
[Source "ChessBase"]
[SourceQuality "1"]
[TimeControl "900+10"]

1. e4 {[%emt 0:00:00]} c5 {[%emt 0:00:00]} 2. Nf3 {[%emt 0:00:00]} d6 {[%emt 0:00:00]} 3. d4 {[%emt 0:00:00]} cxd4 {[%emt 0:00:00]} 4. Nxd4 {[%emt 0:00:00]} Nf6 {[%emt 0:00:00]} 5. Nc3 {[%emt 0:00:00]} a6 {[%emt 0:00:01]} 6. Bc4 {[%emt 0:00:02]} e6 {[%emt 0:00:03]} 7. O-O {[%emt 0:00:20]} Be7 {[%emt 0:01:09]} 8. Bb3 {[%emt 0:00:21]} O-O {[%emt 0:00:33]} 9. Qf3 {[%emt 0:00:02]} Nbd7 {[%emt 0:00:18]} 10. Qg3 {[%emt 0:00:32]} Nc5 {[%emt 0:00:14]} 11. Bh6 {[%emt 0:01:00]} Ne8 {[%emt 0:00:10]} 12. Rad1 {[%emt 0:00:17]} Bh4 {[%emt 0:00:39]} 13. Qg4 {[%emt 0:03:36]} Nxb3 {[%emt 0:01:22]} 14. Nxb3 {[%emt 0:00:09]} e5 {[%emt 0:00:11]} 15. Qh5 {[%emt 0:00:30]} gxh6 {[%emt 0:00:04]} 16. Nd5 {[%emt 0:02:22]} Bg5 {[%emt 0:00:50]} 17. g3 {[%emt 0:04:43]} Kh8 {[%emt 0:02:39]} 18. h4 {[%emt 0:00:30]} Ng7 {[%emt 0:00:16]} 19. Qe2 {[%emt 0:01:24]} Bxh4 {[%emt 0:01:12]} 20. gxh4 {[%emt 0:00:41]} Rg8 {[%emt 0:00:04]} 21. Rd3 Nh5+ 22. Rg3 Nxg3 23. fxg3 Rxg3+ 0-1

[Event "Moscow Rapid-ch 2018"]
[Site "Moscow"]
[Date "2018.12.08"]
[Round "3"]
[White "Martynyuk, Elizaveta"]
[Black "Utiatskaja, Irina"]
[Result "1-0"]
[ECO "B90"]
[WhiteElo "2128"]
[BlackElo "2246"]
[Annotator "NA"]
[PlyCount "61"]
[EventDate "2018.12.08"]
[EventType "swiss"]
[EventCountry "RUS"]
[SourceTitle "playchess.com"]
[Source "ChessBase"]
[SourceQuality "1"]
[TimeControl "900+10"]

1. e4 {[%emt 0:00:12]} c5 {[%emt 0:00:00]} 2. Nf3 {[%emt 0:00:03]} d6 {[%emt 0:00:00]} 3. d4 {[%emt 0:00:01]} cxd4 {[%emt 0:00:00]} 4. Nxd4 {[%emt 0:00:02]} Nf6 {[%emt 0:00:00]} 5. Nc3 {[%emt 0:00:02]} a6 {[%emt 0:00:00]} 6. Be3 {[%emt 0:00:02]} e6 {[%emt 0:00:03]} 7. f3 {[%emt 0:00:04]} Nbd7 {[%emt 0:00:10]} 8. Qd2 {[%emt 0:00:02]} b5 {[%emt 0:00:01]} 9. g4 {[%emt 0:00:04]} Nb6 {[%emt 0:00:22]} 10. Qf2 {[%emt 0:00:52]} Nfd7 {[%emt 0:00:02]} 11. a3 {[%emt 0:00:11]} Bb7 {[%emt 0:00:02]} 12. h4 {[%emt 0:00:06]} Rc8 {[%emt 0:00:10]} 13. g5 {[%emt 0:00:05]} Be7 {[%emt 0:01:32]} 14. Nb3 {[%emt 0:00:55]} Rxc3 {[%emt 0:00:34]} 15. bxc3 {[%emt 0:00:03]} Qc7 {[%emt 0:00:01]} 16. Bd2 {[%emt 0:02:47]} d5 {[%emt 0:03:33]} 17. exd5 {[%emt 0:00:45]} Nxd5 {[%emt 0:00:23]} 18. Bd3 {[%emt 0:01:09]} Nxc3 {[%emt 0:01:51]} 19. Qd4 {[%emt 0:00:28]} Qg3+ {[%emt 0:01:11]} 20. Qf2 {[%emt 0:00:06]} Qe5+ {[%emt 0:01:25]} 21. Qe3 {[%emt 0:00:22]} Qxe3+ {[%emt 0:00:56]} 22. Bxe3 {[%emt 0:00:03]} Ne5 {[%emt 0:01:28]} 23. Nd2 {[%emt 0:00:32]} Nxf3+ {[%emt 0:00:41]} 24. Nxf3 {[%emt 0:00:07]} Bxf3 {[%emt 0:00:02]} 25. Rf1 {[%emt 0:00:18]} Bh5 {[%emt 0:00:37]} 26. Bd4 {[%emt 0:00:17]} Nd5 {[%emt 0:00:01]} 27. Bxg7 {[%emt 0:00:15]} Rg8 {[%emt 0:00:01]} 28. Bd4 {[%emt 0:00:39]} f5 {[%emt 0:01:41]} 29. gxf6 {[%emt 0:02:04]} Bd6 {[%emt 0:00:00]} 30. Be2 {[%emt 0:00:36]} Bxe2 {[%emt 0:00:25]} 31. f7+ {[%emt 0:00:07]} 1-0

[Event "Moscow Rapid-ch 2018"]
[Site "Moscow"]
[Date "2018.12.08"]
[Round "3"]
[White "Kanevskaya, Anna"]
[Black "Afanasieva, Alexandra"]
[Result "1-0"]
[ECO "E11"]
[WhiteElo "2105"]
[BlackElo "1973"]
[Annotator "NA"]
[PlyCount "107"]
[EventDate "2018.12.08"]
[EventType "swiss"]
[EventCountry "RUS"]
[SourceTitle "playchess.com"]
[Source "ChessBase"]
[SourceQuality "1"]
[TimeControl "900+10"]

1. d4 {[%emt 0:00:00]} Nf6 {[%emt 0:00:00]} 2. Nf3 {[%emt 0:00:00]} e6 {[%emt 0:00:00]} 3. c4 {[%emt 0:00:06]} Bb4+ {[%emt 0:00:01]} 4. Bd2 {[%emt 0:00:05]} a5 {[%emt 0:00:01]} 5. Nc3 {[%emt 0:00:53]} d6 {[%emt 0:01:25]} 6. g3 {[%emt 0:00:07]} b6 {[%emt 0:01:00]} 7. Bg2 {[%emt 0:00:08]} Bb7 {[%emt 0:00:05]} 8. O-O {[%emt 0:00:19]} Nbd7 {[%emt 0:01:24]} 9. Qc2 {[%emt 0:00:15]} O-O {[%emt 0:01:58]} 10. b3 {[%emt 0:00:17]} Bxc3 {[%emt 0:02:28]} 11. Bxc3 {[%emt 0:00:02]} Ne4 {[%emt 0:00:49]} 12. Bb2 {[%emt 0:00:46]} f5 {[%emt 0:00:11]} 13. Rad1 {[%emt 0:00:39]} Qe7 {[%emt 0:00:28]} 14. Ne1 {[%emt 0:00:13]} Rab8 {[%emt 0:01:05]} 15. Nd3 {[%emt 0:00:24]} c5 {[%emt 0:04:30]} 16. f3 {[%emt 0:00:56]} Nef6 {[%emt 0:00:04]} 17. Qd2 {[%emt 0:00:38]} Rbd8 {[%emt 0:00:37]} 18. Ne1 {[%emt 0:00:50]} Nb8 {[%emt 0:00:41]} 19. Nc2 {[%emt 0:00:16]} Nc6 {[%emt 0:00:13]} 20. e3 {[%emt 0:03:24]} e5 {[%emt 0:00:19]} 21. a3 {[%emt 0:00:36]} e4 {[%emt 0:00:10]} 22. f4 {[%emt 0:00:17]} Qf7 {[%emt 0:00:29]} 23. d5 {[%emt 0:00:31]} Ne7 {[%emt 0:00:26]} 24. b4 {[%emt 0:00:02]} axb4 {[%emt 0:00:02]} 25. axb4 {[%emt 0:00:02]} Ra8 {[%emt 0:00:01]} 26. Ra1 {[%emt 0:00:07]} Rfc8 {[%emt 0:00:08]} 27. Rfb1 {[%emt 0:00:43]} Qf8 {[%emt 0:00:10]} 28. Bf1 {[%emt 0:00:35]} Rxa1 {[%emt 0:00:04]} 29. Bxa1 {[%emt 0:00:18]} Rb8 {[%emt 0:00:30]} 30. Qc3 {[%emt 0:00:43]} Qd8 {[%emt 0:00:21]} 31. Qa3 {[%emt 0:01:16]} Ra8 {[%emt 0:00:04]} 32. Qb2 {[%emt 0:00:04]} Bc8 {[%emt 0:00:04]} 33. Be2 {[%emt 0:01:35]} Bd7 {[%emt 0:00:09]} 34. h3 {[%emt 0:00:07]} Qf8 {[%emt 0:00:20]} 35. Kf2 {[%emt 0:00:19]} Rc8 {[%emt 0:00:12]} 36. Rg1 {[%emt 0:00:10]} Ne8 {[%emt 0:00:17]} 37. g4 {[%emt 0:00:36]} Nf6 {[%emt 0:00:04]} 38. g5 {[%emt 0:01:15]} Ne8 {[%emt 0:00:01]} 39. h4 {[%emt 0:00:02]} Kf7 {[%emt 0:00:12]} 40. h5 {[%emt 0:00:30]} Ra8 {[%emt 0:00:23]} 41. g6+ {[%emt 0:00:48]} hxg6 {[%emt 0:00:05]} 42. hxg6+ {[%emt 0:00:03]} Kg8 {[%emt 0:00:01]} 43. Rg3 {[%emt 0:00:37]} Nf6 {[%emt 0:00:09]} 44. Rg5 {[%emt 0:00:25]} Ng4+ {[%emt 0:00:24]} 45. Bxg4 {[%emt 0:00:20]} fxg4 {[%emt 0:00:01]} 46. Qc1 {[%emt 0:00:01]} Bf5 {[%emt 0:00:08]} 47. Qh1 {[%emt 0:00:13]} Nxg6 {[%emt 0:00:23]} 48. Qh5 {[%emt 0:00:06]} Rxa1 {[%emt 0:00:09]} 49. Rxf5 {[%emt 0:00:11]} Qa8 {[%emt 0:00:11]} 50. Nxa1 {[%emt 0:00:07]} Qxa1 {[%emt 0:00:04]} 51. Qxg6 {[%emt 0:00:04]} g3+ {[%emt 0:00:10]} 52. Kg2 {[%emt 0:00:18]} Qb2+ {[%emt 0:00:05]} 53. Kxg3 {[%emt 0:00:04]} cxb4 {[%emt 0:00:21]} 54. Qf7+ {[%emt 0:00:02]} 1-0

[Event "Moscow Rapid-ch 2018"]
[Site "Moscow"]
[Date "2018.12.08"]
[Round "3"]
[White "Usov, Aleksandr E."]
[Black "Chudinovskikh, Alexander M"]
[Result "1-0"]
[ECO "A61"]
[WhiteElo "1593"]
[BlackElo "2184"]
[Annotator "NA"]
[PlyCount "83"]
[EventDate "2018.12.08"]
[EventType "swiss"]
[EventCountry "RUS"]
[SourceTitle "playchess.com"]
[Source "ChessBase"]
[SourceQuality "1"]
[TimeControl "900+10"]

1. d4 {[%emt 0:00:00]} Nf6 {[%emt 0:00:00]} 2. Nf3 {[%emt 0:00:00]} c5 {[%emt 0:00:00]} 3. d5 {[%emt 0:00:03]} e6 {[%emt 0:00:00]} 4. c4 {[%emt 0:00:01]} exd5 {[%emt 0:00:00]} 5. cxd5 {[%emt 0:00:02]} d6 {[%emt 0:00:00]} 6. Nc3 {[%emt 0:00:02]} g6 {[%emt 0:00:00]} 7. e4 {[%emt 0:00:01]} a6 {[%emt 0:00:00]} 8. Be2 {[%emt 0:00:04]} Bg7 {[%emt 0:00:01]} 9. O-O {[%emt 0:00:03]} O-O {[%emt 0:00:12]} 10. Nd2 {[%emt 0:00:02]} b5 {[%emt 0:00:00]} 11. f4 {[%emt 0:00:03]} Nbd7 {[%emt 0:00:08]} 12. Nf3 {[%emt 0:00:15]} b4 {[%emt 0:00:07]} 13. e5 {[%emt 0:00:36]} dxe5 {[%emt 0:00:36]} 14. fxe5 {[%emt 0:00:09]} bxc3 {[%emt 0:00:08]} 15. exf6 {[%emt 0:00:08]} Nxf6 {[%emt 0:00:06]} 16. bxc3 {[%emt 0:00:05]} Nxd5 {[%emt 0:00:12]} 17. Bg5 {[%emt 0:02:03]} f6 {[%emt 0:00:04]} 18. Bh4 {[%emt 0:00:26]} Be6 {[%emt 0:00:40]} 19. Bc4 {[%emt 0:02:07]} Bf7 {[%emt 0:00:17]} 20. Ne5 {[%emt 0:00:57]} Ne3 {[%emt 0:03:18]} 21. Qxd8 {[%emt 0:05:28]} Raxd8 {[%emt 0:00:08]} 22. Nxf7 {[%emt 0:00:12]} Rxf7 {[%emt 0:00:34]} 23. Bxf7+ {[%emt 0:00:05]} Kxf7 {[%emt 0:00:01]} 24. Rf3 {[%emt 0:01:46]} Nf5 {[%emt 0:00:33]} 25. Bf2 {[%emt 0:00:02]} Bf8 {[%emt 0:02:28]} 26. g4 {[%emt 0:00:51]} Ng7 {[%emt 0:00:03]} 27. Bh4 {[%emt 0:00:23]} Rd6 {[%emt 0:00:53]} 28. Rb1 {[%emt 0:00:24]} Be7 {[%emt 0:01:22]} 29. Rb7 {[%emt 0:00:22]} Re6 {[%emt 0:01:12]} 30. c4 {[%emt 0:00:27]} Ne8 {[%emt 0:01:40]} 31. Bg3 {[%emt 0:00:38]} Re4 {[%emt 0:01:06]} 32. h3 {[%emt 0:00:45]} h5 {[%emt 0:01:59]} 33. gxh5 {[%emt 0:00:13]} gxh5 {[%emt 0:00:02]} 34. Rd3 {[%emt 0:00:43]} f5 {[%emt 0:01:24]} 35. Bf2 {[%emt 0:00:25]} Kg6 {[%emt 0:01:01]} 36. Rb6+ {[%emt 0:00:36]} Kg5 {[%emt 0:00:10]} 37. Rg3+ {[%emt 0:00:18]} Kf4 {[%emt 0:00:03]} 38. Kg2 {[%emt 0:00:01]} Nf6 {[%emt 0:00:33]} 39. Rg7 {[%emt 0:00:25]} Re2 {[%emt 0:00:11]} 40. Kf1 {[%emt 0:00:03]} Re4 {[%emt 0:00:10]} 41. Rb3 {[%emt 0:00:08]} Ne8 {[%emt 0:00:13]} 42. Bg3# {[%emt 0:00:05]} 1-0

[Event "Moscow Rapid-ch 2018"]
[Site "Moscow"]
[Date "2018.12.08"]
[Round "4"]
[White "Yeletsky, Ivan"]
[Black "Usov, Aleksandr E."]
[Result "1-0"]
[ECO "D11"]
[WhiteElo "2406"]
[BlackElo "1593"]
[Annotator "NA"]
[PlyCount "93"]
[EventDate "2018.12.08"]
[EventType "swiss"]
[EventCountry "RUS"]
[SourceTitle "playchess.com"]
[Source "ChessBase"]
[SourceQuality "1"]
[TimeControl "900+10"]

1. d4 {[%emt 0:00:00]} c6 {[%emt 0:00:00]} 2. c4 {[%emt 0:00:00]} d5 {[%emt 0:00:00]} 3. Nf3 {[%emt 0:00:02]} Nf6 {[%emt 0:00:00]} 4. e3 {[%emt 0:00:07]} Bg4 {[%emt 0:00:01]} 5. Nc3 {[%emt 0:00:03]} e6 {[%emt 0:00:01]} 6. Qb3 {[%emt 0:00:21]} Qc8 {[%emt 0:00:30]} 7. Nh4 {[%emt 0:00:05]} g5 {[%emt 0:00:14]} 8. Nf3 {[%emt 0:00:12]} Bxf3 9. gxf3 {[%emt 0:00:02]} Nbd7 {[%emt 0:00:18]} 10. e4 {[%emt 0:00:50]} c5 {[%emt 0:02:59]} 11. cxd5 {[%emt 0:00:06]} cxd4 {[%emt 0:00:08]} 12. dxe6 {[%emt 0:00:03]} Nc5 {[%emt 0:05:19]} 13. Qb5+ {[%emt 0:00:02]} Qc6 {[%emt 0:01:28]} 14. Bxg5 {[%emt 0:00:49]} Bg7 {[%emt 0:00:45]} 15. Nd5 {[%emt 0:00:30]} Nfxe4 {[%emt 0:01:55]} 16. Qxc6+ {[%emt 0:00:29]} bxc6 {[%emt 0:00:13]} 17. Nc7+ {[%emt 0:00:03]} Kf8 {[%emt 0:00:02]} 18. e7+ {[%emt 0:00:02]} Kg8 {[%emt 0:00:01]} 19. fxe4 {[%emt 0:00:11]} Rc8 {[%emt 0:00:06]} 20. e8=Q+ {[%emt 0:00:34]} Rxe8 {[%emt 0:00:03]} 21. Nxe8 {[%emt 0:00:01]} d3 {[%emt 0:00:07]} 22. Nxg7 {[%emt 0:00:08]} Kxg7 {[%emt 0:00:03]} 23. Be3 {[%emt 0:00:09]} Nxe4 {[%emt 0:00:04]} 24. Bxd3 Nd6 25. Rg1+ {[%emt 0:00:19]} Kf8 {[%emt 0:00:15]} 26. Bd4 {[%emt 0:00:10]} Rg8 {[%emt 0:00:04]} 27. Rxg8+ {[%emt 0:00:03]} Kxg8 {[%emt 0:00:01]} 28. Bxa7 {[%emt 0:00:04]} c5 {[%emt 0:00:01]} 29. Bxc5 {[%emt 0:00:01]} Ne8 {[%emt 0:00:03]} 30. Ke2 {[%emt 0:00:04]} f5 {[%emt 0:00:01]} 31. a4 {[%emt 0:00:03]} f4 {[%emt 0:00:00]} 32. f3 {[%emt 0:00:02]} h5 {[%emt 0:00:01]} 33. h4 {[%emt 0:00:03]} Nf6 {[%emt 0:00:02]} 34. Bc4+ {[%emt 0:00:02]} Kh7 {[%emt 0:00:02]} 35. a5 {[%emt 0:00:02]} Nd7 {[%emt 0:00:02]} 36. Bd4 {[%emt 0:00:03]} Nf8 {[%emt 0:00:02]} 37. Kd3 {[%emt 0:00:04]} Ng6 {[%emt 0:00:02]} 38. Ke4 {[%emt 0:00:02]} Ne7 {[%emt 0:00:03]} 39. a6 {[%emt 0:00:01]} Nc8 {[%emt 0:00:06]} 40. Ke5 {[%emt 0:00:05]} Ne7 {[%emt 0:00:02]} 41. Kf6 {[%emt 0:00:04]} Ng8+ {[%emt 0:00:05]} 42. Bxg8+ {[%emt 0:00:02]} Kh6 {[%emt 0:00:01]} 43. Bh7 {[%emt 0:00:06]} Kxh7 {[%emt 0:00:04]} 44. a7 {[%emt 0:00:02]} Kh6 {[%emt 0:00:03]} 45. Kf7 {[%emt 0:00:07]} Kh7 {[%emt 0:00:01]} 46. a8=R {[%emt 0:00:03]} Kh6 {[%emt 0:00:02]} 47. Rh8# {[%emt 0:00:04]} 1-0

[Event "Moscow Rapid-ch 2018"]
[Site "Moscow"]
[Date "2018.12.08"]
[Round "4"]
[White "Dragomarezkij, Evgeni"]
[Black "Dudin, Gleb"]
[Result "1/2-1/2"]
[ECO "A20"]
[WhiteElo "2385"]
[BlackElo "2303"]
[Annotator "NA"]
[PlyCount "123"]
[EventDate "2018.12.08"]
[EventType "swiss"]
[EventCountry "RUS"]
[SourceTitle "playchess.com"]
[Source "ChessBase"]
[SourceQuality "1"]
[TimeControl "900+10"]

1. c4 {[%emt 0:00:00]} e5 {[%emt 0:00:00]} 2. Nf3 {[%emt 0:00:00]} Nc6 {[%emt 0:00:00]} 3. d4 {[%emt 0:00:00]} exd4 4. Nxd4 {[%emt 0:00:00]} Bb4+ {[%emt 0:00:54]} 5. Bd2 {[%emt 0:00:01]} Bxd2+ 6. Qxd2 {[%emt 0:00:03]} Nf6 {[%emt 0:00:40]} 7. Nc3 {[%emt 0:00:11]} O-O {[%emt 0:00:12]} 8. g3 {[%emt 0:01:11]} Ne5 {[%emt 0:01:24]} 9. b3 {[%emt 0:00:17]} d5 {[%emt 0:00:06]} 10. cxd5 {[%emt 0:00:34]} Nxd5 {[%emt 0:00:11]} 11. Bg2 {[%emt 0:00:07]} Nb4 {[%emt 0:01:10]} 12. Nc2 {[%emt 0:05:34]} Qxd2+ {[%emt 0:03:07]} 13. Kxd2 {[%emt 0:00:02]} Rd8+ {[%emt 0:00:02]} 14. Kc1 {[%emt 0:00:02]} Nxc2 {[%emt 0:00:08]} 15. Kxc2 {[%emt 0:00:02]} Ng4 {[%emt 0:03:02]} 16. Raf1 {[%emt 0:01:20]} c6 {[%emt 0:01:07]} 17. h3 {[%emt 0:00:05]} Nf6 {[%emt 0:00:17]} 18. e4 {[%emt 0:00:13]} Re8 {[%emt 0:00:36]} 19. f4 {[%emt 0:00:26]} Nd7 {[%emt 0:00:19]} 20. Rd1 {[%emt 0:00:39]} f6 {[%emt 0:01:05]} 21. Rd6 {[%emt 0:00:10]} Nb6 {[%emt 0:01:03]} 22. Rhd1 {[%emt 0:00:06]} Be6 {[%emt 0:00:03]} 23. Bf1 {[%emt 0:02:36]} a5 {[%emt 0:00:23]} 24. a4 {[%emt 0:00:43]} Kf8 {[%emt 0:00:33]} 25. Ne2 {[%emt 0:01:39]} Ke7 {[%emt 0:00:34]} 26. R6d2 {[%emt 0:00:02]} Bf7 {[%emt 0:01:15]} 27. Kb2 {[%emt 0:01:09]} Kf8 {[%emt 0:00:16]} 28. Bg2 {[%emt 0:00:08]} Bg6 {[%emt 0:00:56]} 29. Nc3 {[%emt 0:00:58]} Bf7 {[%emt 0:00:08]} 30. h4 {[%emt 0:00:44]} Bh5 {[%emt 0:00:14]} 31. Re1 {[%emt 0:00:12]} Re7 {[%emt 0:00:08]} 32. Rd3 {[%emt 0:00:15]} Nd7 {[%emt 0:00:11]} 33. Bf3 {[%emt 0:00:26]} Nc5 {[%emt 0:00:10]} 34. Rde3 {[%emt 0:00:01]} Bf7 {[%emt 0:00:06]} 35. Bd1 {[%emt 0:00:08]} Rd8 {[%emt 0:00:05]} 36. Bc2 {[%emt 0:00:08]} Rd2 {[%emt 0:00:10]} 37. Nb1 {[%emt 0:00:34]} Rg2 {[%emt 0:00:22]} 38. R1e2 {[%emt 0:00:01]} Rxe2 {[%emt 0:00:10]} 39. Rxe2 {[%emt 0:00:00]} Rd7 {[%emt 0:00:10]} 40. Nc3 {[%emt 0:00:08]} Rd4 {[%emt 0:00:06]} 41. Re3 {[%emt 0:00:31]} Rb4 {[%emt 0:00:08]} 42. Na2 {[%emt 0:00:05]} Rd4 {[%emt 0:00:12]} 43. Kc3 {[%emt 0:00:05]} Rd8 {[%emt 0:00:12]} 44. e5 {[%emt 0:00:05]} fxe5 {[%emt 0:00:04]} 45. Rxe5 {[%emt 0:00:02]} b6 {[%emt 0:00:11]} 46. Nc1 {[%emt 0:00:10]} Nd7 {[%emt 0:00:07]} 47. Re1 {[%emt 0:00:08]} Nf6 {[%emt 0:00:02]} 48. Nd3 {[%emt 0:00:07]} Nd5+ {[%emt 0:00:27]} 49. Kb2 {[%emt 0:00:03]} Nb4 {[%emt 0:00:13]} 50. Nxb4 {[%emt 0:00:02]} axb4 {[%emt 0:00:01]} 51. Kc1 {[%emt 0:00:13]} h6 {[%emt 0:00:18]} 52. Re3 {[%emt 0:00:23]} Rd4 {[%emt 0:00:10]} 53. Re5 {[%emt 0:00:34]} c5 {[%emt 0:00:11]} 54. a5 {[%emt 0:00:05]} bxa5 {[%emt 0:00:02]} 55. Rxc5 {[%emt 0:00:01]} a4 {[%emt 0:00:08]} 56. Rc8+ {[%emt 0:00:11]} Ke7 {[%emt 0:00:03]} 57. Rc7+ {[%emt 0:00:04]} Kf6 {[%emt 0:00:09]} 58. Rc6+ {[%emt 0:00:13]} Ke7 {[%emt 0:00:06]} 59. Rc7+ {[%emt 0:00:09]} Kf6 {[%emt 0:00:15]} 60. bxa4 b3 61. Bb1 Rxa4 62. Rc6+ 1/2-1/2

[Event "Moscow Rapid-ch 2018"]
[Site "Moscow"]
[Date "2018.12.08"]
[Round "4"]
[White "Andreev, Konstantin"]
[Black "Vlasov, Sergey"]
[Result "0-1"]
[ECO "D45"]
[WhiteElo "2276"]
[BlackElo "2229"]
[Annotator "NA"]
[PlyCount "66"]
[EventDate "2018.12.08"]
[EventType "swiss"]
[EventCountry "RUS"]
[SourceTitle "playchess.com"]
[Source "ChessBase"]
[SourceQuality "1"]
[TimeControl "900+10"]

1. Nf3 Nf6 2. c4 e6 3. d4 d5 4. Nc3 Nbd7 5. e3 c6 6. Be2 Bd6 7. O-O O-O 8. Qc2 dxc4 9. Bxc4 b5 10. Be2 Bb7 11. Rd1 Qe7 12. b3 Rac8 13. Bb2 a6 14. Rac1 c5 15. Qb1 Rfd8 16. h3 e5 17. dxc5 Nxc5 18. b4 Ncd7 19. a3 e4 20. Nd4 Qe5 21. g3 Bb8 22. Na2 Qg5 23. Kg2 Ne5 24. Rxc8 Rxc8 25. Rc1 Re8 26. Nc3 h5 27. h4 Qg6 28. a4 Nd3 29. Rd1 Nxf2 30. Kxf2 Qxg3+ 31. Kf1 Bc8 32. Bxh5 Bh3+ 33. Ke2 Qg2+ 0-1

[Event "Moscow Rapid-ch 2018"]
[Site "Moscow"]
[Date "2018.12.08"]
[Round "4"]
[White "Gurvich, Vitaly"]
[Black "Lavrov, Maxim"]
[Result "1/2-1/2"]
[ECO "C68"]
[WhiteElo "2270"]
[BlackElo "2387"]
[Annotator "NA"]
[PlyCount "112"]
[EventDate "2018.12.08"]
[EventType "swiss"]
[EventCountry "RUS"]
[SourceTitle "playchess.com"]
[Source "ChessBase"]
[SourceQuality "1"]
[TimeControl "900+10"]

1. e4 e5 2. Nf3 Nc6 3. Bb5 a6 4. Bxc6 dxc6 5. O-O f6 6. d4 exd4 7. Nxd4 c5 8. Nb3 Qxd1 9. Rxd1 Bd7 10. Bf4 O-O-O 11. Nc3 Be6 12. Na5 Rxd1+ 13. Rxd1 Ne7 14. Nd5 Nxd5 15. exd5 Bf5 16. Re1 Bg6 17. h3 Bf7 18. c4 g5 19. Bd2 Rg8 20. Bc3 Rg6 21. g4 Bd6 22. Kg2 h5 23. f3 Rh6 24. Re3 Bf8 25. Re4 Bd6 26. Re1 Bf8 27. Re2 Bd6 28. Re4 Bf8 29. Bd2 Bd6 30. Be1 hxg4 31. fxg4 Bg6 32. Re6 Be5 33. Bg3 Bxb2 34. Nb3 Bd4 35. Bf2 Bxf2 36. Kxf2 Rxh3 37. Rxf6 Bb1 38. Nxc5 Rh8 39. Ne6 Bxa2 40. Rf7 Kb8 41. Rxc7 Rc8 42. d6 Rxc7 43. dxc7+ Kc8 44. Ke3 Bxc4 45. Nxg5 Kxc7 46. Kd4 Be2 47. Ne6+ Kd6 48. Nc5 b6 49. Ne4+ Kc6 50. g5 Bh5 51. Nc3 Bf7 52. Ne4 a5 53. Nc3 Bg6 54. Nd5 Bf7 55. Nxb6 Kxb6 56. g6 Bxg6 1/2-1/2